lending/lending_fUSD_20250819
["ID","MTS","AMOUNT","RATE_DAILY","PERIOD"]
[380286118,1755633038476,-816.54,0.00012291,2]
[380286119,1755633038485,-160.36672887,0.00012367,2]
[380286120,1755633038494,-317.52247346,0.00012384,3]
[380286121,1755633038503,-301.59104201,0.000125,2]
[380286122,1755633038512,-21382.33,0.000125,7]
[380286123,1755633038522,-151.0,0.000125,2]
[380286124,1755633038534,-151.0,0.000125,2]
[380286125,1755633038543,-151.0,0.000125,2]
[380286126,1755633038552,-151.0,0.000125,2]
[380286127,1755633038563,-151.0,0.000125,2]
[380286128,1755633038573,-151.0,0.000125,2]
[380286129,1755633038582,-151.0,0.000125,2]
[380286130,1755633038591,-151.0,0.000125,2]
[380286131,1755633038601,-151.0,0.000125,2]
[380286132,1755633038610,-151.380829,0.000125,2]
[380286133,1755633038620,-151.0,0.000125,2]
[380286134,1755633038629,-15526.52408916,0.000126,2]
[380286138,1755633039715,-628.73244732,0.000126,2]
[380286139,1755633039742,-9336.80000001,0.000126,2]
[380286141,1755633039773,-394.40926833,0.000126,2]
[380286143,1755633039784,-5287.45,0.000126,2]
[380286158,1755633040433,-894.0,0.00011258,2]
[380286159,1755633040442,-4579.89857607,0.000126,2]
[380286160,1755633040527,-255.64052143,0.000126,2]
[380286161,1755633041367,-286003.09509768,0.000126,2]
[380286162,1755633041381,-16838.96662718,0.000126,2]
[380286165,1755633042393,-283.25,0.000126,2]
[380286166,1755633042448,-504.587572,0.000126,2]
[380286167,1755633042461,-1677.77580082,0.000126,2]
[380286168,1755633042471,-334.502717,0.000126,2]
[380286169,1755633042480,-254.160015,0.000126,2]
[380286170,1755633042490,-334.502717,0.000126,2]
[380286171,1755633042499,-334.502717,0.000126,2]
[380286172,1755633042508,-254.160015,0.000126,2]
[380286173,1755633042517,-72.06505379,0.000126,2]
[380286174,1755633042540,-182.09496121,0.000126,2]
[380286175,1755633042549,-334.502717,0.000126,2]
[380286176,1755633042558,-151.0,0.000126,2]
[380286177,1755633042567,-151.0,0.000126,2]
[380286178,1755633042576,-254.160015,0.000126,2]
[380286179,1755633042585,-151.0,0.000126,2]
[380286180,1755633042594,-151.0,0.000126,2]
[380286181,1755633042603,-151.0,0.000126,2]
[380286182,1755633042612,-151.0,0.000126,2]
[380286183,1755633042622,-151.0,0.000126,2]
[380286184,1755633042631,-151.0,0.000126,2]
[380286185,1755633042641,-55.38315836,0.000126,2]
[380286186,1755633042677,-95.61684164,0.000126,2]
[380286187,1755633042686,-151.0,0.000126,2]
[380286188,1755633042696,-151.0,0.000126,2]
[380286189,1755633042705,-151.0,0.000126,2]
[380286190,1755633042714,-151.0,0.000126,2]
[380286192,1755633042723,-153.449182,0.000126,2]
[380286194,1755633042733,-151.0,0.000126,2]
[380286196,1755633042742,-151.0,0.000126,2]
[380286197,1755633042751,-151.0,0.000126,2]
[380286198,1755633042760,-151.0,0.000126,2]
[380286199,1755633042771,-217.890207,0.000126,2]
[380286200,1755633042780,-151.0,0.000126,2]
[380286201,1755633042790,-151.0,0.000126,2]
[380286202,1755633042801,-151.0,0.000126,2]
[380286203,1755633042811,-262.06613,0.000126,2]
[380286204,1755633042820,-151.0,0.000126,2]
[380286206,1755633042830,-440.59589,0.000126,2]
[380286208,1755633042839,-440.59589,0.000126,2]
[380286210,1755633042848,-440.59589,0.000126,2]
[380286212,1755633042857,-440.59589,0.000126,2]
[380286214,1755633042866,-151.0,0.000126,2]
[380286215,1755633042875,-151.0,0.000126,2]
[380286216,1755633042884,-151.0,0.000126,2]
[380286217,1755633042893,-764.29641303,0.000126,2]
[380286219,1755633042909,-4235.70358697,0.000126,2]
[380286220,1755633042918,-150.02698916,0.0001265,5]
[380286221,1755633042927,-736.0,0.00012742,2]
[380286222,1755633042936,-166.06,0.00012777,2]
[380286223,1755633042945,-284.0,0.0001282,2]
[380286224,1755633042954,-708.0,0.00012856,2]
[380286225,1755633042963,-500.0,0.00012856,2]
[380286226,1755633042972,-500.0,0.00012856,2]
[380286227,1755633042981,-500.0,0.00012856,2]
[380286228,1755633042992,-500.0,0.00012856,2]
[380286229,1755633043001,-500.0,0.00012856,2]
[380286230,1755633043010,-500.0,0.00012856,2]
[380286231,1755633043019,-500.0,0.00012856,2]
[380286232,1755633043029,-500.0,0.00012856,2]
[380286233,1755633043039,-500.0,0.00012856,2]
[380286234,1755633043332,-500.0,0.00012856,2]
[380286235,1755633043348,-500.0,0.00012856,2]
[380286236,1755633043358,-500.0,0.00012856,2]
[380286237,1755633043368,-500.0,0.00012856,2]
[380286238,1755633043381,-500.0,0.00012856,2]
[380286239,1755633043395,-500.0,0.00012856,2]
[380286240,1755633043406,-500.0,0.00012856,2]
[380286241,1755633043416,-500.0,0.00012856,2]
[380286242,1755633043427,-345.81173244,0.00012856,2]
[380286243,1755633043447,-154.18826756,0.00012856,2]
[380286244,1755633043458,-500.0,0.00012856,2]
[380286245,1755633043467,-500.0,0.00012856,2]
[380286246,1755633043476,-500.0,0.00012856,2]
[380286247,1755633043486,-500.0,0.00012856,2]
[380286248,1755633043495,-500.0,0.00012856,2]
[380286249,1755633043505,-500.0,0.00012856,2]
[380286250,1755633043514,-500.0,0.00012856,2]
[380286251,1755633043524,-500.0,0.00012856,2]
[380286252,1755633043533,-500.0,0.00012856,2]
[380286253,1755633043543,-500.0,0.00012856,2]
[380286254,1755633043552,-946.0,0.00012856,2]
[380286255,1755633043561,-500.0,0.00012856,2]
[380286256,1755633043570,-500.0,0.00012856,2]
[380286257,1755633043579,-500.0,0.00012856,2]
[380286258,1755633043588,-500.0,0.00012856,2]
[380286259,1755633043597,-500.0,0.00012856,2]
[380286260,1755633043606,-500.0,0.00012856,2]
[380286261,1755633043616,-500.0,0.00012856,2]
[380286262,1755633043625,-500.0,0.00012856,2]
[380286263,1755633043634,-500.0,0.00012856,2]
[380286264,1755633043643,-500.0,0.00012856,2]
[380286265,1755633043652,-500.0,0.00012856,2]
[380286266,1755633043662,-500.0,0.00012856,2]
[380286267,1755633043671,-2449.0,0.0001293,2]
[380286268,1755633043680,-63491.8554671,0.00012995,2]
[380286269,1755633043689,-6227.715014,0.00012995,2]
[380286270,1755633043698,-3620.89646721,0.00013,7]
[380286271,1755633043707,-113292.9111867,0.00013,2]
[380286272,1755633043716,-1550.93449167,0.00013,2]
[380286273,1755633043726,-746.42750328,0.00013,15]
[380286274,1755633043735,-500.0,0.00013,2]
[380286275,1755633043744,-500.0,0.00013,2]
[380286276,1755633043753,-500.0,0.00013,2]
[380286277,1755633043763,-500.0,0.00013,2]
[380286278,1755633043772,-500.0,0.00013,2]
[380286279,1755633043781,-500.0,0.00013,2]
[380286280,1755633043791,-500.0,0.00013,2]
[380286281,1755633043800,-500.0,0.00013,2]
[380286282,1755633043809,-500.0,0.00013,2]
[380286283,1755633043818,-500.0,0.00013,2]
[380286284,1755633043827,-500.0,0.00013,2]
[380286285,1755633043836,-500.0,0.00013,2]
[380286286,1755633043845,-500.0,0.00013,2]
[380286287,1755633043854,-500.0,0.00013,2]
[380286288,1755633043863,-500.0,0.00013,2]
[380286289,1755633043872,-500.0,0.00013,2]
[380286290,1755633043881,-500.0,0.00013,2]
[380286291,1755633043890,-500.0,0.00013,2]
[380286292,1755633043899,-500.0,0.00013,2]
[380286293,1755633043908,-500.0,0.00013,2]
[380286294,1755633043917,-500.0,0.00013,2]
[380286295,1755633043926,-500.0,0.00013,2]
[380286296,1755633043935,-500.0,0.00013,2]
[380286297,1755633043944,-500.0,0.00013,2]
[380286298,1755633043953,-500.0,0.00013,2]
[380286299,1755633043962,-500.0,0.00013,2]
[380286300,1755633043970,-500.0,0.00013,2]
[380286301,1755633043980,-500.0,0.00013,2]
[380286302,1755633043989,-500.0,0.00013,2]
[380286303,1755633043998,-500.0,0.00013,2]
[380286304,1755633044007,-500.0,0.00013,2]
[380286305,1755633044016,-500.0,0.00013,2]
[380286306,1755633044026,-500.0,0.00013,2]
[380286307,1755633044035,-500.0,0.00013,2]
[380286308,1755633044045,-500.0,0.00013,2]
[380286309,1755633044054,-500.0,0.00013,2]
[380286310,1755633044063,-500.0,0.00013,2]
[380286311,1755633044072,-500.0,0.00013,2]
[380286312,1755633044081,-500.0,0.00013,2]
[380286313,1755633044090,-500.0,0.00013,2]
[380286314,1755633044099,-500.0,0.00013,2]
[380286315,1755633044108,-500.0,0.00013,2]
[380286316,1755633044117,-500.0,0.00013,2]
[380286317,1755633044126,-500.0,0.00013,2]
[380286318,1755633044135,-500.0,0.00013,2]
[380286319,1755633044144,-500.0,0.00013,2]
[380286320,1755633044153,-500.0,0.00013,2]
[380286321,1755633044162,-500.0,0.00013,2]
[380286322,1755633044171,-500.0,0.00013,2]
[380286323,1755633044180,-500.0,0.00013,2]
[380286324,1755633044189,-500.0,0.00013,2]
[380286325,1755633044197,-500.0,0.00013,2]
[380286326,1755633044207,-500.0,0.00013,2]
[380286327,1755633044216,-500.0,0.00013,2]
[380286328,1755633044225,-500.0,0.00013,2]
[380286329,1755633044235,-500.0,0.00013,2]
[380286330,1755633044243,-500.0,0.00013,2]
[380286331,1755633044252,-500.0,0.00013,2]
[380286332,1755633044262,-150.0,0.00013068,2]
[380286333,1755633044271,-174.39,0.00013068,2]
[380286334,1755633044281,-21382.33,0.000131,7]
[380286335,1755633044291,-160.36672887,0.000131,2]
[380286336,1755633044300,-408.27,0.00013113,2]
[380286337,1755633044309,-283.44,0.00013176,2]
[380286338,1755633044319,-1000.0,0.00013317,2]
[380286339,1755633044328,-150.0,0.00013425,2]
[380286340,1755633044338,-211.9,0.000135,2]
[380286341,1755633044348,-700.58,0.0001351,2]
[380286342,1755633044357,-163.140073,0.00013579,3]
[380286343,1755633044367,-165.794743,0.00013594,3]
[380286344,1755633044376,-163.970146,0.00013594,3]
[380286345,1755633044388,-163.140073,0.00013594,3]
[380286346,1755633044397,-357.65,0.00013595,2]
[380286347,1755633044407,-213.0,0.000136,2]
[380286348,1755633044416,-213.0,0.000136,2]
[380286349,1755633044426,-213.0,0.000136,2]
[380286350,1755633044435,-216.0,0.000136,2]
[380286351,1755633044444,-216.0,0.000136,2]
[380286352,1755633044454,-233.0,0.00013616,2]
[380286353,1755633044464,-2500.0,0.0001363,3]
[380286354,1755633044475,-2500.0,0.00013639,3]
[380286355,1755633044484,-2500.0,0.00013647,3]
[380286356,1755633044494,-2500.0,0.00013656,3]
[380286357,1755633044503,-2500.0,0.00013665,3]
[380286358,1755633044512,-2500.0,0.00013674,3]
[380286359,1755633044522,-1655.53608449,0.00013683,3]
[380286360,1755633045578,-3549.368,0.00011258,2]
[380286361,1755633045588,-844.46391551,0.00013683,3]
[380286362,1755633045597,-500.0,0.00013688,2]
[380286363,1755633045606,-376.41290344,0.00013688,2]
[380286364,1755633045630,-1126.64709656,0.00013688,2]
[380286365,1755633045639,-500.0,0.00013688,2]
[380286366,1755633045648,-692.04,0.00013688,2]
[380286367,1755633045657,-1869.75323758,0.00013691,3]
[380286368,1755633045669,-630.24676242,0.00013691,3]
[380286369,1755633045680,-1054.69,0.00013698,2]
[380286370,1755633045689,-1891.35617227,0.00013698,2]
[380286371,1755633045698,-150.0,0.00013698,2]
[380286372,1755633045707,-500.0,0.00013699,2]
[380286373,1755633045716,-609.67,0.00013699,2]
[380286374,1755633045725,-610.0,0.00013699,2]
[380286375,1755633045734,-200.0,0.00013699,2]
[380286376,1755633045743,-17483.90099187,0.00013699,2]
[380286384,1755634017402,57.14650701,8.6e-05,2]
[380286385,1755634017423,92.85349299,8.6e-05,2]
[380286656,1755634231825,-150.0,9.78e-05,2]
[380286657,1755634231834,-150.0,0.00010212,2]
[380286658,1755634231843,-300.0,0.00010212,2]
[380286659,1755634231852,-639.01972034,0.00010212,2]
[380286660,1755634231863,-560.98027966,0.00010212,2]
[380286661,1755634231873,-500.0,0.00010212,2]
[380286662,1755634231882,-500.0,0.00010212,2]
[380286663,1755634231891,-201.85,0.00010213,2]
[380286664,1755634231900,-202.31,0.00010213,2]
[380286665,1755634231909,-203.13,0.00010213,2]
[380286666,1755634231919,-200.97,0.00010213,2]
[380286667,1755634231928,-200.7,0.00010213,2]
[380286668,1755634231937,-203.58,0.00010213,2]
[380286670,1755634231946,-202.34,0.00010213,2]
[380286672,1755634231956,-201.96,0.00010213,2]
[380286675,1755634231965,-203.92,0.00010213,2]
[380286677,1755634231974,-200.93,0.00010213,2]
[380286679,1755634231983,-203.61,0.00010213,2]
[380286681,1755634231993,-202.42,0.00010213,2]
[380286683,1755634232001,-203.23,0.00010213,2]
[380286685,1755634232011,-203.0,0.00010213,2]
[380286687,1755634232020,-200.68,0.00010213,2]
[380286689,1755634232030,-203.92,0.00010213,2]
[380286691,1755634232039,-203.03,0.00010213,2]
[380286693,1755634232048,-200.95,0.00010213,2]
[380286695,1755634232057,-200.48,0.00010213,2]
[380286697,1755634232066,-202.18,0.00010213,2]
[380286700,1755634232076,-201.36,0.00010213,2]
[380286703,1755634232085,-150.29,0.00010213,2]
[380286706,1755634232094,-200.77,0.00010213,2]
[380286709,1755634232104,-200.47,0.00010213,2]
[380286712,1755634232114,-150.78,0.00010213,2]
[380286714,1755634232124,-200.94,0.00010213,2]
[380286716,1755634232133,-201.23,0.00010213,2]
[380286718,1755634232143,-203.45,0.00010213,2]
[380286720,1755634232152,-203.02,0.00010213,2]
[380286722,1755634232162,-203.31,0.00010213,2]
[380286724,1755634232172,-203.19,0.00010213,2]
[380286726,1755634232182,-202.92,0.00010213,2]
[380286728,1755634232192,-203.19,0.00010213,2]
[380286730,1755634232201,-201.65,0.00010213,2]
[380286732,1755634232210,-200.87,0.00010213,2]
[380286734,1755634232220,-202.62,0.00010213,2]
[380286736,1755634232230,-201.98,0.00010213,2]
[380286738,1755634232240,-3568.59,0.00010305,2]
[380286740,1755634232249,-481.21,0.00010356,3]
[380286742,1755634232258,-3000.0,0.00010525,2]
[380286744,1755634232267,-277.35679052,0.00010525,2]
[380286745,1755634232278,-4671.57762418,0.00010525,2]
[380286746,1755634232287,-151.0,0.00010525,2]
[380286748,1755634232296,-1248.68568818,0.00010592,2]
[380286749,1755634232306,-150.0,0.00010593,2]
[380286750,1755634232316,-150.0,0.00010593,2]
[380286751,1755634232325,-500.0,0.00010593,2]
[380286752,1755634232334,-500.0,0.00010593,2]
[380286753,1755634232344,-290.18205873,0.00010593,2]
[380286754,1755634232353,-849.0,0.00010593,2]
[380286755,1755634232363,-150.0,0.00010593,2]
[380286756,1755634232372,-555.0,0.00010593,2]
[380286757,1755634232381,-150.0,0.00010593,2]
[380286758,1755634232390,-150.0,0.00010593,2]
[380286759,1755634232399,-150.0,0.00010593,2]
[380286760,1755634232408,-300.0,0.00010593,2]
[380286761,1755634232418,-150.0,0.00010593,2]
[380286762,1755634232427,-159.95114314,0.00010593,2]
[380286763,1755634232437,-500.0,0.00010593,2]
[380286764,1755634232446,-150.0,0.00010867,2]
[380286765,1755634232456,-150.0,0.00010867,2]
[380286766,1755634232465,-500.0,0.00010867,2]
[380286767,1755634232474,-500.0,0.00010867,2]
[380286768,1755634232483,-849.0,0.00010867,2]
[380286769,1755634232492,-150.0,0.00010867,2]
[380286770,1755634232501,-555.0,0.00010867,2]
[380286771,1755634232510,-150.0,0.00010867,2]
[380286772,1755634232519,-200.0,0.00010867,2]
[380286773,1755634232530,-300.0,0.00010867,2]
[380286774,1755634232538,-500.0,0.00010867,2]
[380286775,1755634232548,-2105.17753587,0.00010925,2]
[380286776,1755634232557,-403.68771705,0.00010926,2]
[380286777,1755634232566,-263.37378765,0.00010928,2]
[380286778,1755634232575,-403.68771705,0.00010932,2]
[380286779,1755634232584,-403.68771705,0.00010932,2]
[380286780,1755634232593,-403.68771705,0.00010942,2]
[380286781,1755634232603,-2105.17753587,0.00010947,2]
[380286782,1755634232612,-263.37378765,0.00010948,2]
[380286783,1755634232621,-263.37378765,0.00010948,2]
[380286784,1755634232630,-2105.17753587,0.00010951,2]
[380286785,1755634232640,-2105.17753587,0.00010953,2]
[380286786,1755634232649,-2105.17753587,0.00010964,2]
[380286787,1755634232659,-263.37378765,0.00010967,2]
[380286788,1755634232668,-150.0,0.0001097,2]
[380286789,1755634232677,-2105.17753587,0.00010971,2]
[380286790,1755634232687,-263.37378765,0.00010974,2]
[380286791,1755634232696,-2105.17753587,0.00010976,2]
[380286792,1755634232706,-403.68771705,0.00010977,2]
[380286793,1755634232715,-263.37378765,0.00010978,2]
[380286794,1755634232725,-263.37378765,0.00010979,2]
[380286795,1755634232735,-403.68771705,0.0001098,2]
[380286796,1755634232748,-403.68771705,0.00010996,2]
[380286797,1755634232758,-400.0,0.00010999,2]
[380286798,1755634232767,-282.09553805,0.00010999,2]
[380286799,1755634232779,-3524.67646863,0.00011,2]
[380286800,1755634232788,-1505.21639484,0.000111,2]
[380286801,1755634232798,-200.0,0.00011141,2]
[380286802,1755634232807,-150.0,0.00011141,2]
[380286803,1755634232820,-424.34454146,0.00011141,2]
[380286804,1755634232830,-500.0,0.00011141,2]
[380286805,1755634232840,-849.0,0.00011141,2]
[380286806,1755634232849,-200.0,0.00011141,2]
[380286807,1755634232858,-555.0,0.00011141,2]
[380286808,1755634232867,-202.18091746,0.00011141,2]
[380286809,1755634232876,-300.0,0.00011141,2]
[380286810,1755634232886,-500.0,0.00011141,2]
[380286811,1755634232895,-165.0,0.00011181,2]
[380286812,1755634232905,-320.0,0.00011182,2]
[380286813,1755634232914,-255.0,0.00011223,2]
[380286814,1755634232923,-420.0,0.00011231,2]
[380286815,1755634232932,-1151.0,0.00011234,2]
[380286816,1755634232941,-71727.05,0.00011281,2]
[380286817,1755634232950,-150.99,0.00011281,2]
[380286818,1755634232959,-1507.95,0.00011281,2]
[380286819,1755634232969,-634.92,0.00011281,2]
[380286820,1755634232979,-7505.19,0.00011281,2]
[380286821,1755634232988,-6091.0,0.0001129,2]
[380286822,1755634232998,-4152.0,0.0001129,2]
[380286823,1755634233007,-717.0,0.0001129,2]
[380286824,1755634233016,-21497.0,0.0001129,2]
[380286825,1755634233026,-246.52247346,0.00011315,3]
[380286826,1755634233035,-261.9839538,0.00011415,2]
[380286827,1755634233045,-500.0,0.00011415,2]
[380286828,1755634233054,-849.0,0.00011415,2]
[380286829,1755634233064,-555.0,0.00011415,2]
[380286830,1755634233074,-300.0,0.00011415,2]
[380286831,1755634233084,-500.0,0.00011415,2]
[380286832,1755634233093,-88277.27027,0.00011428,2]
[380286833,1755634233103,-458.43483364,0.00011474,2]
[380286834,1755634233112,-160.0,0.00011484,2]
[380286835,1755634233122,-843.87140665,0.00011484,2]
[380286836,1755634233132,-212.02104404,0.00011484,2]
[380286837,1755634233141,-2751.0,0.00011507,2]
[380286838,1755634233151,-153.65205854,0.00011521,2]
[380286839,1755634233160,-300.0,0.00011521,2]
[380286840,1755634233169,-160.0,0.00011521,2]
[380286841,1755634233178,-151.0,0.00011521,2]
[380286842,1755634233187,-151.0,0.00011521,2]
[380286843,1755634233197,-500.0,0.00011521,2]
[380286844,1755634233206,-281.5055913,0.00011521,2]
[380286845,1755634233215,-308.44635776,0.00011521,2]
[380286846,1755634233225,-151.0,0.00011521,2]
[380286847,1755634233234,-279.5021044,0.00011521,2]
[380286848,1755634233244,-151.0,0.00011521,2]
[380286849,1755634233253,-151.0,0.00011521,2]
[380286850,1755634233263,-151.0,0.00011521,2]
[380286851,1755634233272,-151.0,0.00011521,2]
[380286852,1755634233283,-151.0,0.00011521,2]
[380286853,1755634233293,-151.0,0.00011521,2]
[380286854,1755634233302,-151.0,0.00011521,2]
[380286855,1755634233312,-151.0,0.00011521,2]
[380286856,1755634233322,-151.0,0.00011521,2]
[380286857,1755634233331,-151.0,0.00011521,2]
[380286858,1755634233340,-151.0,0.00011521,2]
[380286859,1755634233350,-151.0,0.00011521,2]
[380286860,1755634233359,-151.0,0.00011521,2]
[380286861,1755634233370,-151.0,0.00011521,2]
[380286862,1755634233379,-151.0,0.00011521,2]
[380286863,1755634233389,-151.0,0.00011521,2]
[380286864,1755634233398,-151.0,0.00011521,2]
[380286865,1755634233408,-151.0,0.00011521,2]
[380286866,1755634233417,-151.0,0.00011521,2]
[380286867,1755634233427,-151.0,0.00011521,2]
[380286868,1755634233436,-201.87405514,0.00011521,2]
[380286869,1755634233446,-1296.806,0.00011528,2]
[380286871,1755634233455,-904.0,0.00011528,2]
[380286872,1755634233465,-2029.0,0.00011528,2]
[380286873,1755634233475,-3371.0,0.00011528,2]
[380286874,1755634233485,-1297.0,0.00011528,2]
[380286875,1755634233495,-566.0,0.00011528,2]
[380286876,1755634233504,-1656.0,0.00011528,2]
[380286877,1755634233515,-599.0,0.00011528,2]
[380286878,1755634233524,-1172.0,0.00011528,2]
[380286879,1755634233534,-894.0,0.00011528,2]
[380286880,1755634233543,-500.0,0.00011576,2]
[380286881,1755634233553,-500.0,0.00011631,2]
[380286882,1755634233562,-500.0,0.00011686,2]
[380286883,1755634233572,-170.0,0.00011687,7]
[380286884,1755634233581,-500.0,0.00011689,2]
[380286885,1755634233591,-849.0,0.00011689,2]
[380286886,1755634233600,-555.0,0.00011689,2]
[380286887,1755634233610,-300.0,0.00011689,2]
[380286888,1755634233619,-500.0,0.00011689,2]
[380286889,1755634233629,-175.15,0.00011708,2]
[380286890,1755634233638,-238.35,0.00011734,2]
[380286891,1755634233648,-500.0,0.00011741,2]
[380286892,1755634233657,-500.0,0.00011796,2]
[380286893,1755634233667,-1000.0,0.000118,2]
[380286894,1755634233677,-168.82,0.00011831,2]
[380286895,1755634233686,-1856.97541952,0.00011894,2]
[380286896,1755634233695,-287.61899177,0.00011894,2]
[380286897,1755634233704,-500.0,0.00011963,2]
[380286898,1755634233713,-849.0,0.00011963,2]
[380286899,1755634233723,-555.0,0.00011963,2]
[380286900,1755634233733,-300.0,0.00011963,2]
[380286901,1755634233746,-500.0,0.00011963,2]
[380286902,1755634233756,-539.0,0.00011973,2]
[380286903,1755634233765,-2500.0,0.00011987,2]
[380286904,1755634233776,-239.37,0.00011995,2]
[380286905,1755634233785,-200.0,0.00012,2]
[380286906,1755634233795,-166.73349602,0.00012,2]
[380286907,1755634233804,-25568.88,0.00012055,2]
[380286908,1755634233816,-4276.47,0.000121,7]
[380286909,1755634233825,-4276.47,0.000121,7]
[380286910,1755634233835,-12829.39,0.000121,7]
[380286911,1755634233844,-12829.39,0.000121,7]
[380286912,1755634233854,-86941.83477303,0.00012147,2]
[380286913,1755634233908,-1335.43549695,0.00012147,2]
[380286914,1755634233918,-150.0,0.0001215,2]
[380286915,1755634233928,-782.85293574,0.00012161,2]
[380286916,1755634233939,-1021.16317529,0.00012161,2]
[380286917,1755634233970,-596.03528816,0.00012161,2]
[380286918,1755634233980,-3676.00084682,0.000122,7]
[380286919,1755634234114,-600.46915318,0.000122,7]
[380286920,1755634234124,-12829.39,0.000122,7]
[380286921,1755634234133,-500.0,0.00012237,2]
[380286922,1755634234144,-849.0,0.00012237,2]
[380286923,1755634234154,-555.0,0.00012237,2]
[380286924,1755634234163,-300.0,0.00012237,2]
[380286925,1755634234173,-500.0,0.00012237,2]
[380286926,1755634234183,-433.0,0.00012337,2]
[380286927,1755634234192,-587.0,0.00012352,2]
[380286928,1755634234202,-4276.47,0.000125,7]
[380286929,1755634234211,-12829.39,0.000125,7]
[380286930,1755634234222,-500.0,0.00012511,2]
[380286931,1755634234231,-849.0,0.00012511,2]
[380286932,1755634234241,-555.0,0.00012511,2]
[380286933,1755634234250,-300.0,0.00012511,2]
[380286934,1755634234259,-500.0,0.00012511,2]
[380286935,1755634234269,-2302.2,0.00012699,2]
[380286936,1755634234280,-500.0,0.00012785,2]
[380286937,1755634234289,-849.0,0.00012785,2]
[380286938,1755634234606,-555.0,0.00012785,2]
[380286939,1755634234615,-300.0,0.00012785,2]
[380286940,1755634234624,-500.0,0.00012785,2]
[380286941,1755634234634,-13950.81189147,0.00012866,2]
[380286942,1755634234645,-74326.45837851,0.00012866,2]
[380286943,1755634234654,-311.1,0.0001289,2]
[380286944,1755634234663,-160.0,0.0001289,2]
[380286945,1755634234672,-1081.673936,0.00013014,2]
[380286946,1755634234681,-500.0,0.00013059,2]
[380286947,1755634234691,-849.0,0.00013059,2]
[380286948,1755634234701,-555.0,0.00013059,2]
[380286949,1755634234710,-300.0,0.00013059,2]
[380286950,1755634234719,-500.0,0.00013059,2]
[380286951,1755634234729,-4276.47,0.000131,7]
[380286952,1755634234741,-12829.39,0.000131,7]
[380286953,1755634234750,-298.26089446,0.00013263,2]
[380286954,1755634234759,-21.17248985,0.00013275,2]
[380286955,1755634234771,-978.82751015,0.00013275,2]
[380286956,1755634234782,-150.0,0.0001333,2]
[380286957,1755634234792,-500.0,0.00013333,2]
[380286958,1755634234801,-849.0,0.00013333,2]
[380286959,1755634234811,-555.0,0.00013333,2]
[380286960,1755634234821,-300.0,0.00013333,2]
[380286961,1755634234831,-500.0,0.00013333,2]
[380286962,1755634234840,-5498.6463285,0.00013374,2]
[380286963,1755634234850,-749.24796172,0.00013425,2]
[380286964,1755634234859,-158.0,0.000135,2]
[380286965,1755634234869,-188.0,0.00013507,3]
[380286966,1755634234878,-736.0,0.00013552,2]
[380286967,1755634234887,-823.0,0.00013584,2]